bitfinex/quotes_SOLUSD_20250904
["timestamp","ask_amount","ask_price","bid_price","bid_amount"]
[1757021193089,17.7844291,203.31,203.3,41.35]
[1757021193286,14.8525347,203.31,203.3,41.35]
[1757021193512,14.8525347,203.31,203.3,54.94559401]
[1757021193513,0.06,203.31,203.3,54.94559401]
[1757021195810,2.9918944,203.31,203.3,54.24559401]
[1757021198913,2.9918944,203.31,203.3,54.94559401]
[1757021200211,0.06,203.31,203.3,54.94559401]
[1757021200510,2.9918944,203.31,203.3,54.94559401]
[1757021201413,0.06,203.31,203.3,54.94559401]
[1757021201712,2.9918944,203.31,203.3,54.94559401]
[1757021201906,0.06,203.31,203.3,54.94559401]
[1757021202301,2.9918944,203.31,203.3,17.32559401]
[1757021202602,2.9918944,203.31,203.3,54.94559401]
[1757021202815,0.06,203.31,203.3,54.94559401]
[1757021205519,0.06,203.31,203.3,17.32559401]
[1757021205698,0.06,203.31,203.3,54.94559401]
[1757021208114,0.06,203.34,203.31,13.59559401]
[1757021208316,0.06,203.34,203.33,13.59559401]
[1757021208527,0.06,203.34,203.33,51.21559401]
[1757021208724,0.06,203.34,203.33,55.59456982]
[1757021208913,0.06,203.34,203.33,60.51190942]
[1757021209731,0.06,203.34,203.33,61.40330131]
[1757021210212,0.06,203.34,203.33,66.32141472]
[1757021210412,0.06,203.34,203.33,28.70141472]
[1757021210606,0.06,203.34,203.33,70.00769193]
[1757021212618,0.06,203.34,203.33,66.32141472]
[1757021213626,0.06,203.34,203.33,28.70141472]
[1757021213825,0.06,203.34,203.33,66.32141472]
[1757021214731,0.06,203.34,203.33,28.70141472]
[1757021214934,0.06,203.34,203.33,61.40330131]
[1757021215812,0.06,203.34,203.33,66.32141472]
[1757021218524,0.06,203.34,203.33,66.81322606]
[1757021218911,1e-08,203.34,203.33,66.81322606]
[1757021219118,0.06,203.46,203.38,13.59559401]
[1757021219331,0.06,203.46,203.43,4.5803677]
[1757021219636,0.06,203.46,203.45,13.59559401]
[1757021220013,0.06,203.46,203.45,14.28559401]
[1757021220212,0.06,203.46,203.45,24.16632941]
[1757021220439,0.06,203.46,203.45,29.08154199]
[1757021220936,0.06,203.46,203.45,24.16632941]
[1757021221133,0.06,203.46,203.45,29.08154199]
[1757021223415,5.3003677,203.46,203.45,56.49596171]
[1757021223620,5.3003677,203.46,203.45,5.3003677]
[1757021223932,5.3003677,203.46,203.37,5.3003677]
[1757021223933,26.0,203.43,203.37,5.3003677]
[1757021224140,4.5803677,203.38,203.37,18.7803677]
[1757021224431,4.5803677,203.38,203.37,56.53596171]
[1757021225016,4.5803677,203.38,203.37,37.64]
[1757021225219,5.2403677,203.38,203.37,37.64]
[1757021225613,5.2403677,203.38,203.37,51.23559401]
[1757021225809,4.5803677,203.38,203.37,51.23559401]
[1757021226116,5.2403677,203.38,203.37,13.59559401]
[1757021226627,10.15727201,203.38,203.37,13.59559401]
[1757021228611,10.15727201,203.38,203.35,37.64]
[1757021228817,4.5803677,203.36,203.35,51.23559401]
[1757021230235,5.2403677,203.36,203.3,3.72]
[1757021230443,4.5803677,203.31,203.3,31.41448263]
[1757021230648,4.5803677,203.31,203.3,54.28559401]
[1757021231453,9.49896491,203.31,203.3,54.28559401]
[1757021234626,4.5803677,203.31,203.3,54.28559401]
[1757021234930,19.37071453,203.34,203.31,13.59559401]
[1757021235144,9.49803947,203.35,203.33,13.59559401]
[1757021235527,4.5803677,203.34,203.33,13.59559401]
[1757021236043,4.5803677,203.34,203.33,14.28559401]
[1757021237732,4.91738788,203.36,203.33,14.28559401]
[1757021237733,4.5803677,203.35,203.33,14.28559401]
[1757021237932,4.5803677,203.35,203.34,37.66]
[1757021240846,9.4979974,203.35,203.34,37.66]
[1757021241031,10.1979974,203.35,203.34,37.66]
[1757021241228,10.1979974,203.35,203.33,51.26559401]
[1757021241430,4.5803677,203.34,203.33,51.26559401]
[1757021242430,9.49823924,203.34,203.33,51.26559401]
[1757021243849,4.5803677,203.34,203.33,51.26559401]
[1757021245244,10.19823924,203.34,203.33,37.67]
[1757021245835,10.19823924,203.34,203.33,0.03]
[1757021246140,9.49823924,203.34,203.33,0.03]
[1757021247349,26.0,203.37,203.33,0.03]
[1757021247540,4.5803677,203.38,203.34,37.64]
[1757021247853,5.2803677,203.39,203.34,38.29]
[1757021248233,5.2803677,203.39,203.35,0.65]
[1757021248435,5.2803677,203.41,203.36,0.65]
[1757021248644,31.2803677,203.41,203.36,0.65]
[1757021249040,5.2803677,203.4,203.36,0.65]
[1757021249653,4.91666256,203.39,203.35,13.59559401]
[1757021249948,4.91666256,203.39,203.36,0.65]
[1757021250151,9.49703026,203.39,203.36,0.65]
[1757021251862,9.49735013,203.38,203.35,13.59559401]
[1757021252035,4.91698243,203.38,203.35,14.24559401]
[1757021252229,9.49735013,203.38,203.35,14.24559401]
[1757021253135,9.49735013,203.38,203.36,0.65]
[1757021253955,4.5803677,203.39,203.36,0.65]
[1757021254346,4.5803677,203.39,203.35,13.59559401]
[1757021254545,4.5803677,203.39,203.35,14.24559401]
[1757021255260,4.91690431,203.38,203.36,0.65]
[1757021255637,4.91690431,203.38,203.35,13.59559401]
[1757021255838,4.91690431,203.38,203.35,14.24559401]
[1757021256057,9.49727201,203.38,203.35,14.24559401]
[1757021256558,9.49727201,203.38,203.35,14.27559401]
[1757021256859,9.55727201,203.38,203.35,14.27559401]
[1757021257337,0.06,203.38,203.37,13.59559401]
[1757021257539,0.06,203.38,203.37,56.46596171]
[1757021257846,0.06,203.38,203.37,60.09724717]
[1757021259359,0.06,203.38,203.37,65.01439325]
[1757021263241,0.06,203.38,203.37,65.50610785]
[1757021265769,0.06,203.38,203.37,65.50137268]
[1757021269478,0.06,203.38,203.37,63.848114]
[1757021270554,0.06,203.38,203.37,62.7063994]
[1757021270748,0.06,203.38,203.37,63.4163994]
[1757021271556,0.06,203.38,203.37,63.42666851]
[1757021272769,0.06,203.38,203.37,25.78666851]
[1757021273261,0.06,203.38,203.37,63.48666851]
[1757021273454,0.06,203.38,203.37,63.48619808]
[1757021276383,0.06,203.38,203.37,49.89060407]
[1757021276563,0.06,203.38,203.37,63.48619808]
[1757021278986,0.06,203.38,203.37,63.97791268]
[1757021279160,0.06,203.38,203.37,91.94850164]
[1757021279768,0.06,203.38,203.37,90.94850164]
[1757021279978,0.06,203.38,203.37,77.35290763]
[1757021280362,0.06,203.38,203.37,90.94850164]
[1757021280882,0.06,203.41,203.37,90.94850164]
[1757021280883,0.06,203.41,203.38,13.59559401]
[1757021281082,0.06,203.41,203.4,28.23113911]
[1757021281272,0.06,203.41,203.4,31.86748808]
[1757021281471,0.06,203.41,203.4,32.57748808]
[1757021282074,0.06,203.41,203.4,20.869052]
[1757021282689,0.06,203.41,203.4,22.85836382]
[1757021282998,0.06,203.41,203.4,63.52547284]
[1757021283795,0.06,203.41,203.4,64.01711492]
[1757021291764,0.06,203.41,203.4,22.6400059]
[1757021291970,0.06,203.41,203.4,62.77547284]
[1757021292266,0.06,203.41,203.4,59.84836382]
[1757021292990,0.75,203.41,203.4,54.93194298]
[1757021296373,0.75,203.41,203.4,54.93387032]
[1757021303106,0.06,203.41,203.4,54.93387032]
[1757021309325,43.23584079,203.54,203.45,39.59559401]
[1757021309326,0.06,203.49,203.45,39.59559401]
[1757021309492,0.06,203.49,203.46,54.87420013]
[1757021309808,0.06,203.49,203.46,55.59420013]
[1757021310180,0.06,203.49,203.46,23.3485124]
[1757021310404,0.06,203.49,203.46,57.56420678]
[1757021310579,0.06,203.49,203.46,54.63709776]
[1757021310901,0.06,203.49,203.46,19.73567542]
[1757021311106,0.06,203.49,203.46,57.82417832]
[1757021311288,0.06,203.49,203.46,62.73914932]
[1757021311611,0.06,203.49,203.46,65.66625834]
[1757021311783,0.06,203.49,203.46,61.98768068]
[1757021312907,0.06,203.49,203.46,62.7304216]
[1757021313080,0.06,203.49,203.46,62.72948856]
[1757021313282,0.06,203.49,203.46,65.65659758]
[1757021313989,0.06,203.49,203.46,62.72867457]
[1757021314194,0.06,203.49,203.46,65.65578359]
[1757021320508,0.06,203.49,203.48,39.59559401]
[1757021320686,0.06,203.51,203.49,13.59559401]
[1757021321008,0.06,203.51,203.5,96.31064251]
[1757021321310,0.06,203.51,203.5,97.03064251]
[1757021321509,1e-08,203.51,203.5,98.99987328]
[1757021321690,1e-08,203.51,203.5,98.50847279]
[1757021322500,1e-08,203.51,203.5,103.4224777]
[1757021323390,1e-08,203.51,203.5,103.41879086]
[1757021325995,1e-08,203.51,203.5,50.86324576]
[1757021326199,1e-08,203.51,203.5,50.14324576]
[1757021326404,1e-08,203.51,203.5,62.08324576]
[1757021326693,3.62710903,203.51,203.5,19.22924085]
[1757021327004,3.62710903,203.51,203.42,4.91570839]
[1757021327187,2.92710902,203.45,203.43,3.66355825]
[1757021327394,2.92710902,203.44,203.42,4.91570839]
[1757021327596,2.92710902,203.44,203.43,58.86683928]
[1757021327899,3.62710902,203.45,203.44,13.59559401]
[1757021328101,3.62710902,203.45,203.44,17.25973025]
[1757021329024,3.62710902,203.45,203.44,28.96816633]
[1757021329394,0.7,203.45,203.44,28.96816633]
[1757021329599,5.27445173,203.45,203.44,28.96816633]
[1757021330017,4.57445173,203.45,203.44,28.96816633]
[1757021330398,0.75,203.47,203.44,28.96816633]
[1757021330599,0.06,203.47,203.46,13.59559401]
[1757021330820,0.06,203.47,203.46,51.55559401]
[1757021331205,0.75,203.47,203.46,51.55559401]
[1757021331723,5.32445173,203.47,203.46,51.55559401]
[1757021336827,5.32445173,203.47,203.44,25.30403009]
[1757021337030,4.57445173,203.46,203.45,51.53559401]
[1757021338730,0.06,203.47,203.46,13.59559401]
[1757021338939,4.63445173,203.47,203.46,13.59559401]
[1757021340131,0.06,203.47,203.46,13.59559401]
[1757021340311,4.63445173,203.47,203.46,13.59559401]
[1757021343611,0.06,203.47,203.46,13.59559401]
[1757021343819,4.63445173,203.47,203.46,13.59559401]
[1757021344015,4.63445173,203.47,203.45,1.97039481]
[1757021344214,4.57445173,203.46,203.45,5.6066763]
[1757021344414,4.57445173,203.46,203.45,43.5066763]
[1757021345233,4.63445173,203.47,203.46,13.59559401]
[1757021345443,0.06,203.47,203.46,14.29559401]
[1757021346333,0.06,203.47,203.46,18.87004575]
[1757021346929,5.32445173,203.47,203.46,18.17004575]
[1757021347122,5.32445173,203.47,203.46,51.47559401]
[1757021347511,4.63445173,203.47,203.46,51.47559401]
[1757021349433,0.06,203.47,203.46,51.47559401]
[1757021349624,4.63445173,203.47,203.46,51.47559401]
[1757021350436,0.06,203.47,203.46,51.47559401]
[1757021350735,4.63445173,203.47,203.46,51.47559401]
[1757021350924,4.63445173,203.47,203.46,51.49559401]
[1757021353322,0.06,203.47,203.46,51.49559401]
[1757021353523,4.63445173,203.47,203.46,51.49559401]
[1757021354936,10.23919111,203.47,203.44,4.57445173]
[1757021355142,4.57445173,203.45,203.44,18.17004574]
[1757021355336,4.57445173,203.45,203.44,55.09903788]
[1757021358244,4.57445173,203.45,203.44,55.75903788]
[1757021358546,4.57445173,203.45,203.44,55.75859509]
[1757021359047,4.57445173,203.45,203.44,55.09859509]
[1757021359745,4.57445173,203.46,203.44,55.09859509]
[1757021360048,4.57445173,203.46,203.44,51.45559401]
[1757021361951,4.57445173,203.45,203.44,51.45559401]
[1757021362152,4.57445173,203.45,203.44,55.75043102]
[1757021362447,4.57445173,203.45,203.44,55.09043102]
[1757021363024,4.57445173,203.45,203.44,55.75043102]
[1757021363556,4.57445173,203.45,203.44,55.750124]
[1757021364133,4.57445173,203.45,203.44,55.090124]
[1757021366533,4.57445173,203.46,203.44,55.750124]
[1757021366851,4.57445173,203.46,203.44,52.11559401]
[1757021368250,4.57445173,203.46,203.45,3.63784818]
[1757021368636,4.57445173,203.46,203.45,3.63784754]
[1757021368849,4.57445173,203.46,203.44,52.11559401]
[1757021369155,0.06,203.47,203.45,3.63784754]
[1757021369362,0.06,203.47,203.46,37.8]
[1757021369738,0.76,203.47,203.46,37.8]
[1757021370240,0.76,203.47,203.46,41.44251125]
[1757021370456,5.33445173,203.47,203.46,41.44251125]
[1757021370939,4.63445173,203.47,203.46,41.44251125]
[1757021371331,10.24918117,203.47,203.46,3.64251125]
[1757021371529,10.24918117,203.47,203.46,41.44251125]
[1757021372137,10.24918117,203.47,203.46,37.8]
[1757021373750,10.24918117,203.47,203.42,0.03]
[1757021373958,4.57445173,203.43,203.42,0.03]
[1757021374255,4.57445173,203.43,203.42,37.83]
[1757021378261,10.19014754,203.43,203.42,0.03]
[1757021378845,5.61569581,203.43,203.42,0.03]
[1757021379045,10.19014754,203.43,203.42,0.03]
[1757021380971,9.49014754,203.43,203.42,0.03]
[1757021383072,10.19014754,203.43,203.42,0.03]
[1757021385470,9.49014754,203.43,203.42,0.03]
[1757021388262,10.21014754,203.43,203.42,0.03]
[1757021388457,9.49014754,203.43,203.42,0.03]
[1757021389476,7.84517512,203.43,203.42,0.03]
[1757021390474,8.56517512,203.43,203.42,0.03]
[1757021390973,20.28309236,203.43,203.41,0.03]
[1757021391150,40.64739655,203.42,203.41,0.03]
[1757021391575,41.36739655,203.42,203.41,0.03]
[1757021392275,46.28333401,203.42,203.41,0.03]
[1757021392654,34.56541677,203.42,203.41,0.03]
[1757021393168,33.84541677,203.42,203.41,0.03]
[1757021394974,28.92947931,203.42,203.41,0.73]
[1757021395278,28.92947931,203.42,203.41,0.03]
[1757021395279,33.84541677,203.42,203.41,0.03]
[1757021397275,33.84541677,203.42,203.41,0.73]
[1757021398970,33.84541677,203.42,203.41,0.03]
[1757021399560,33.84541677,203.42,203.41,0.73]
[1757021400464,33.84541677,203.42,203.41,0.03]
[1757021401472,33.84541677,203.42,203.41,0.73]
[1757021405582,33.84541677,203.42,203.41,0.03]
[1757021406265,34.56541677,203.42,203.41,0.03]
[1757021408588,33.84541677,203.42,203.41,0.03]
[1757021410582,34.56541677,203.42,203.41,0.03]
[1757021411273,33.84541677,203.42,203.41,0.03]
[1757021412481,28.92947931,203.42,203.41,0.73]
[1757021412687,33.84541677,203.42,203.41,0.03]
[1757021413682,33.90541677,203.42,203.41,0.03]
[1757021413983,33.90541677,203.42,203.41,0.73]
[1757021414283,33.90541677,203.42,203.41,0.03]
[1757021419289,34.59541677,203.42,203.41,0.03]
[1757021420493,46.31333401,203.42,203.41,0.03]
[1757021422296,34.59541677,203.42,203.41,0.03]
[1757021423293,34.59541677,203.42,203.39,0.03]
[1757021423294,26.0,203.4,203.39,0.03]
[1757021423500,40.64739655,203.4,203.39,0.03]
[1757021423794,41.33739655,203.4,203.39,0.03]
[1757021424294,46.25381739,203.4,203.39,0.03]
[1757021424881,48.22566921,203.4,203.39,0.03]
[1757021428620,85.94566921,203.4,203.39,0.03]
[1757021431015,85.94566921,203.4,203.38,0.03]
[1757021431296,2.92947931,203.39,203.38,0.03]
[1757021431505,2.92947931,203.39,203.37,0.03]
[1757021431807,41.31947931,203.38,203.37,0.03]
[1757021432101,43.29181727,203.38,203.37,0.03]
[1757021432799,48.20872158,203.38,203.37,0.03]
[1757021434011,45.27924227,203.38,203.37,0.03]
[1757021434308,48.20872158,203.38,203.37,0.03]
[1757021435304,10.50872158,203.38,203.37,0.03]
[1757021435516,26.0,203.36,203.35,0.03]
[1757021435687,66.64947931,203.36,203.35,0.03]
[1757021435885,67.33947931,203.36,203.35,0.03]
[1757021436087,69.31191452,203.36,203.35,0.03]
[1757021436287,74.2293024,203.36,203.35,0.03]
[1757021439914,74.2293024,203.36,203.34,0.03]
[1757021440300,2.92947931,203.35,203.34,0.03]
[1757021440502,6.65947931,203.35,203.34,0.03]
[1757021440691,7.34947931,203.35,203.34,0.03]
[1757021441096,12.26710901,203.35,203.34,0.03]
[1757021441706,12.26710901,203.35,203.33,0.03]
[1757021441913,40.64947931,203.34,203.33,0.03]
[1757021442325,43.67947931,203.34,203.33,0.03]
[1757021443123,48.59735085,203.34,203.33,0.03]
[1757021445023,10.87735085,203.34,203.33,0.03]
[1757021445319,10.87735085,203.34,203.33,0.73]
[1757021445524,10.87735085,203.34,203.33,0.03]
[1757021447727,26.0,203.31,203.3,3.03]
[1757021448026,28.92947931,203.31,203.3,3.03]
[1757021448401,31.95947931,203.31,203.3,3.03]
[1757021448606,36.87807652,203.31,203.3,3.03]
[1757021448802,36.87807652,203.31,203.3,3.69]
[1757021451525,43.11546679,203.31,203.3,3.03]
[1757021456431,43.11546679,203.31,203.3,3.69]
[1757021458927,33.94859721,203.31,203.3,3.69]
[1757021459230,38.532032,203.31,203.3,3.69]
[1757021460231,3.03,203.31,203.3,3.69]
[1757021460435,7.61343479,203.31,203.3,3.69]
[1757021463739,30.58343479,203.31,203.3,3.69]
[1757021464040,4.58343479,203.31,203.3,3.69]
[1757021466117,37.7,203.36,203.3,3.69]
[1757021466118,4.91737942,203.37,203.3,3.69]
[1757021466341,4.58343479,203.31,203.3,3.03]
[1757021466514,4.58343479,203.34,203.3,3.03]
[1757021466713,4.58343479,203.33,203.3,3.03]
[1757021466918,4.64343479,203.33,203.31,0.66]
[1757021469342,0.06,203.33,203.31,0.66]
[1757021469645,4.64343479,203.33,203.31,0.66]
[1757021470346,0.06,203.33,203.31,0.66]
[1757021471018,4.64343479,203.33,203.31,0.66]
[1757021471225,4.58343479,203.32,203.3,3.03]
[1757021471427,5.28343479,203.31,203.3,3.03]
[1757021471641,10.2011737,203.31,203.3,3.03]
[1757021472647,15.11977091,203.31,203.3,3.03]
[1757021473225,14.41977091,203.31,203.3,3.03]
[1757021473640,15.11977091,203.31,203.3,3.03]
[1757021474220,19.7032057,203.31,203.3,3.03]
[1757021474645,15.11977091,203.31,203.3,3.03]
[1757021475732,19.7032057,203.31,203.3,3.03]
[1757021479956,15.11977091,203.31,203.3,3.03]
[1757021480832,19.7032057,203.31,203.3,3.03]
[1757021482236,23.84372951,203.31,203.3,1e-08]
[1757021485338,19.7032057,203.31,203.3,0.03000001]
[1757021487136,23.84454195,203.31,203.3,0.03000001]
[1757021488664,19.7032057,203.31,203.3,0.03000001]
[1757021488851,23.84355711,203.31,203.3,0.03000001]
[1757021492359,26.0,203.29,203.28,0.03]
[1757021492542,42.30343479,203.29,203.27,1e-08]
[1757021492746,5.25343479,203.28,203.27,1e-08]
[1757021493263,4.58343479,203.28,203.27,1e-08]
[1757021493464,6.55674576,203.28,203.27,1e-08]
[1757021494365,11.47606886,203.28,203.27,1e-08]
[1757021494948,49.19606886,203.28,203.27,1e-08]
[1757021495964,49.86606886,203.28,203.27,1e-08]
[1757021496846,26.0,203.26,203.25,0.03]
[1757021497170,68.30343479,203.26,203.25,0.03]
[1757021497675,68.30343479,203.26,203.16,0.1]
[1757021497856,4.58343479,203.22,203.16,0.1]
[1757021498375,23.09980431,203.22,203.16,0.1]
[1757021499657,26.9420794,203.22,203.16,0.1]
[1757021499851,26.9420794,203.22,203.19,0.65]
[1757021500050,27.6120794,203.22,203.18,0.65]
[1757021500464,27.6120794,203.22,203.16,0.1]
[1757021500664,26.9420794,203.22,203.19,0.65]
[1757021500867,26.9420794,203.22,203.16,0.1]
[1757021501074,26.9420794,203.22,203.2,0.65]
[1757021502758,26.9420794,203.22,203.19,0.65]
[1757021502959,26.9420794,203.22,203.18,0.03]
[1757021503171,26.9420794,203.22,203.2,0.65]
[1757021503870,64.6620794,203.22,203.2,0.65]
[1757021504577,69.24551419,203.22,203.18,0.03]
[1757021504746,30.58343479,203.19,203.18,0.03]
[1757021504952,30.58343479,203.19,203.18,0.68]
[1757021505165,68.32343479,203.19,203.18,0.68]
[1757021505371,81.9190288,203.19,203.18,0.68]
[1757021505654,49.10053084,203.19,203.18,0.68]
[1757021506071,44.51709605,203.19,203.18,0.68]
[1757021506264,49.10053084,203.19,203.18,0.68]
[1757021506458,23.10053084,203.19,203.18,0.68]
[1757021506877,49.10053084,203.19,203.18,0.68]
[1757021507676,49.10053084,203.19,203.18,0.03]
[1757021508556,49.10053084,203.19,203.18,0.73]
[1757021511075,49.10053084,203.19,203.18,0.03]
[1757021511076,23.77053084,203.19,203.18,0.03]
[1757021511460,22.12443116,203.19,203.18,0.03]
[1757021511661,59.88443116,203.19,203.18,0.03]
[1757021512263,59.21443116,203.19,203.18,0.73]
[1757021513163,59.21443116,203.19,203.18,0.03]
[1757021513965,59.21443116,203.19,203.18,0.73]
[1757021514469,59.21443116,203.19,203.18,0.03]
[1757021516379,59.88443116,203.19,203.18,0.03]
[1757021516580,59.21443116,203.19,203.18,0.03]
[1757021518384,13.59559401,203.19,203.18,0.73]
[1757021518569,16.53292912,203.19,203.18,0.73]
[1757021519184,21.45443116,203.19,203.18,0.73]
[1757021520083,2.93733511,203.19,203.18,0.73]
[1757021520266,28.93733511,203.19,203.18,0.73]
[1757021522585,7.85883715,203.19,203.18,0.03]
[1757021522798,8.52883715,203.19,203.18,0.03]
[1757021522993,21.48443116,203.19,203.18,0.03]
[1757021525879,13.62559401,203.19,203.18,0.73]
[1757021526087,16.56292912,203.19,203.18,0.73]
[1757021526388,42.56292912,203.19,203.18,0.73]
[1757021526592,0.06,203.21,203.18,0.73]
[1757021526774,2.93733511,203.19,203.18,0.73]
[1757021527398,28.93733511,203.19,203.18,0.73]
[1757021527901,26.0,203.19,203.18,0.73]
[1757021528077,2.93733511,203.2,203.18,0.73]
[1757021528581,0.06,203.21,203.18,0.73]
[1757021529285,0.06,203.21,203.19,13.59559401]
[1757021529490,0.06,203.21,203.2,0.7]
[1757021531008,0.06,203.21,203.2,14.29559401]
[1757021532090,0.06,203.21,203.2,19.21685385]
[1757021534877,0.06,203.21,203.2,22.15418896]
[1757021543606,0.06,203.21,203.2,25.15152407]
[1757021546620,0.06,203.21,203.2,62.91152407]
[1757021548923,0.06,203.21,203.2,21.51418896]
[1757021549123,0.06,203.21,203.2,62.93152407]
[1757021549504,0.06,203.21,203.2,59.93418896]
[1757021551202,0.06,203.21,203.2,61.90672144]
[1757021551805,0.06,203.24,203.21,13.59559401]
[1757021552005,0.06,203.24,203.23,16.53292912]
[1757021552208,0.06,203.24,203.23,59.2134625]
[1757021552402,0.06,203.24,203.23,61.90550874]
[1757021555131,1e-08,203.24,203.23,61.90550874]
[1757021556141,1e-08,203.26,203.25,39.59559401]
[1757021556315,1e-08,203.26,203.25,80.78493404]
[1757021556515,1e-08,203.26,203.25,81.50493404]
[1757021556836,1e-08,203.26,203.25,83.47668865]
[1757021557230,1e-08,203.26,203.25,88.39673785]
[1757021560837,1e-08,203.26,203.25,87.67673785]
[1757021561143,1e-08,203.26,203.25,88.39673785]
[1757021562931,1e-08,203.26,203.25,50.63673785]
[1757021563131,1e-08,203.26,203.25,88.37673785]
[1757021565147,1e-08,203.26,203.25,88.35673785]
[1757021565524,1e-08,203.26,203.25,50.63673785]
[1757021565725,1e-08,203.26,203.25,87.63673785]
[1757021566431,1e-08,203.26,203.25,88.35673785]
[1757021568437,1e-08,203.26,203.25,87.63673785]
[1757021569946,1e-08,203.26,203.25,88.35673785]
[1757021572342,1e-08,203.26,203.25,61.63673785]
[1757021572653,0.67000001,203.26,203.25,61.63673785]
[1757021573156,0.67000001,203.26,203.25,23.91673785]
[1757021573364,0.67000001,203.26,203.25,61.61673785]
[1757021573530,0.67000001,203.26,203.25,63.2597223]
[1757021574628,0.67000001,203.26,203.25,58.67940274]
[1757021574843,0.67000001,203.26,203.25,60.79596277]
[1757021575651,0.67000001,203.26,203.25,23.09596277]
[1757021575855,0.67000001,203.26,203.25,60.79596277]
[1757021577255,0.67000001,203.26,203.25,23.09596277]
[1757021577443,0.67000001,203.26,203.25,60.79596277]
[1757021577955,0.67000001,203.26,203.25,23.09596277]
[1757021578148,0.67000001,203.26,203.25,60.79596277]
[1757021579846,0.67000001,203.26,203.25,56.21564321]
[1757021580047,0.67000001,203.26,203.25,60.79596277]
[1757021580256,1e-08,203.26,203.25,60.79596277]
[1757021580846,0.67000001,203.26,203.25,56.21564321]
[1757021581044,0.67000001,203.26,203.25,60.79596277]
[1757021581236,1e-08,203.26,203.25,60.79596277]
[1757021582164,1e-08,203.26,203.25,23.09596277]
[1757021582371,1e-08,203.26,203.25,60.79596277]
[1757021583556,1e-08,203.26,203.25,23.09596277]
[1757021583769,1e-08,203.26,203.25,60.79596277]
[1757021584347,1e-08,203.26,203.25,62.76800901]
[1757021584648,1e-08,203.26,203.25,60.79596277]
[1757021585262,1e-08,203.26,203.25,61.28796769]
[1757021585452,1e-08,203.26,203.25,63.26001393]
[1757021585965,1e-08,203.26,203.25,63.98001393]
[1757021586157,1e-08,203.26,203.25,26.28001393]
[1757021586337,1e-08,203.26,203.25,63.98001393]
[1757021590848,1e-08,203.26,203.25,64.01001393]
[1757021591583,1e-08,203.26,203.25,26.31001393]
[1757021591743,1e-08,203.26,203.25,64.01001393]
[1757021592767,1e-08,203.26,203.25,26.31001393]
[1757021592979,1e-08,203.26,203.25,64.01001393]
[1757021593152,1e-08,203.26,203.25,63.29001393]
[1757021597067,1e-08,203.27,203.25,64.01001393]
[1757021597258,1e-08,203.27,203.26,18.89591357]
[1757021597662,1e-08,203.27,203.26,20.86757099]
[1757021598553,1e-08,203.27,203.26,25.78737813]
[1757021598770,1e-08,203.27,203.26,26.27935884]
[1757021602160,1e-08,203.27,203.26,21.69903928]
[1757021602477,1e-08,203.27,203.26,26.27935884]
[1757021609294,1e-08,203.27,203.26,26.30935884]
[1757021610992,1e-08,203.27,203.26,64.00935884]
[1757021611194,1e-08,203.27,203.26,26.30935884]
[1757021611576,1e-08,203.27,203.26,64.00935884]
[1757021616296,1e-08,203.27,203.26,68.95772802]
[1757021619397,1e-08,203.29,203.28,26.0]
[1757021619584,1e-08,203.29,203.28,82.36784588]
[1757021619785,1e-08,203.29,203.28,83.03784588]
[1757021620096,0.06,203.3,203.29,13.59559401]
[1757021620097,1e-08,203.3,203.29,13.59559401]
[1757021620289,1e-08,203.3,203.29,18.84591357]
[1757021620684,1e-08,203.3,203.29,20.81737664]
[1757021621481,1e-08,203.3,203.29,25.73645775]
[1757021621794,1e-08,203.31,203.29,25.73645775]
[1757021621980,1e-08,203.31,203.3,57.03779748]
[1757021622392,1e-08,203.31,203.3,59.00916339]
[1757021623395,1e-08,203.31,203.3,63.92800254]
[1757021625379,0.06,203.33,203.31,13.59559401]
[1757021625582,0.06,203.33,203.32,56.3477491]
[1757021626076,1e-08,203.33,203.32,58.31892071]
[1757021627901,1e-08,203.33,203.32,63.23727601]